Cogmind - Beta 14 *** ADVENTURER MODE // 2024.12.02 @ 17:42:19 Player: IEATCOGS Result: Destroyed by G-34 Mercenary with Small Laser Performance ------------- Evolutions (1) 500 Regions Visited (3) 600 Robots Destroyed (55) 275 Value Destroyed (1062) 1062 Prototype IDs (1) 20 Alien Tech Used (0) 0 Bonus (4) 4 TOTAL SCORE: 2461 Bonus ------- High Alert Combat Kills 4 Cogmind --------- Core Integrity 0/400 Matter 279/300 Energy 100/100 System Corruption 0% Temperature Cool (6) Movement Core (1350) Ox26 Location -9/Storage Parts ------- > --- POWER (2) -------- (None) > --- PROPULSION (2) --- (None) > --- UTILITY (3) ------ Huge Storage Unit Visual Processing Unit > --- WEAPON (2) ------- (None) > --- INVENTORY (25) --- Ion Engine Light Ion Engine Light Ion Engine Improved Ion Engine Heavy Ion Engine Heavy Ion Engine Light Treads Light Treads Improved Aluminum Leg Wheel Wheel Hover Unit Hover Unit Flight Unit Heat Sink Structural Scanner Sensor Array Terrain Scanner Improved Targeting Computer Peak State ------------ > --- POWER ------------ Heavy Ion Engine Heavy Ion Engine > --- PROPULSION ------- Improved Aluminum Leg Wheel > --- UTILITY ---------- Improved Heat Sink Huge Storage Unit Visual Processing Unit > --- WEAPON ----------- Beam Cannon Light Cannon > --- INVENTORY -------- Ion Engine Light Ion Engine Light Ion Engine Improved Ion Engine Heavy Ion Engine Heavy Ion Engine Light Treads Light Treads Wheel Wheel Wheel Hover Unit Hover Unit Flight Unit Heat Sink Structural Scanner Sensor Array Terrain Scanner Improved Targeting Computer Small Laser [Rating: 19] Favorites ----------- Power Light Ion Engine Engine Light Ion Engine Propulsion Wheel Treads Light Treads Leg Aluminum Leg Wheel Wheel Hover Unit Hover Unit Flight Unit Flight Unit Utility Huge Storage Unit Device Improved Heat Sink Storage Huge Storage Unit Processor Visual Processing Unit Weapon Beam Cannon Energy Gun Small Laser Energy Cannon Beam Cannon Ballistic Gun Light Assault Rifle Ballistic Cannon Light Cannon Launcher Grenade Launcher Build | -11 -10 -9 -9 ------- Run | Yrd Mat Mat Sto Slots Evolved 2 | . . 2 . Power 1 | . . 1 . Propulsion . | . . . . Utility 1 | . . 1 . Weapon . | . . . . Parts Attached 48 | 5 13 9 21 Power 9 | 1 1 3 4 Engine 9 | 1 1 3 4 Core . | . . . . Reactor . | . . . . Propulsion 18 | 2 2 2 12 Treads 6 | . . 2 4 Leg 3 | 2 . . 1 Wheel 6 | . 2 . 4 Hover 2 | . . . 2 Flight 1 | . . . 1 Utility 9 | . 6 3 . Device 6 | . 4 2 . Storage 1 | . 1 . . Processor 2 | . 1 1 . Hackware . | . . . . Protection . | . . . . Artifact . | . . . . Weapon 12 | 2 4 1 5 Energy Gun 5 | 1 . . 4 Energy Cannon 2 | . 1 1 . Ballistic Gun 1 | 1 . . . Ballistic Cannon 2 | . 1 . 1 Launcher 2 | . 2 . . Special Weapon . | . . . . Impact Weapon . | . . . . Slashing Weapon . | . . . . Piercing Weapon . | . . . . Special Melee Weapon . | . . . . Unidentified Prototypes 1 | . . . 1 Parts Lost 12 | . . 4 8 Power 3 | . . 1 2 Propulsion 3 | . . 1 2 Utility 2 | . . 1 1 Weapon 4 | . . 1 3 Highest Loss Streak 8 | . . 2 8 To Critical Strikes 1 | . . . 1 Average Slot Usage (%) 91 | . 92 89 91 Engine 18 | . 13 18 20 Treads 2 | . . 2 4 Wheel 16 | . 23 17 12 Device 10 | . 11 7 11 Storage 10 | . 9 11 11 Processor 8 | . 1 11 11 Energy Gun 2 | . 1 . 4 Energy Cannon 7 | . 7 3 10 Ballistic Cannon 5 | . 5 11 3 Launcher 4 | . 12 7 . Peak Build Rating 19 | 5 8 13 19 Average Rating 11 | 3 7 10 14 On Entrance 6 | . 5 8 13 Naked Turns . | . . . . Heaviest Build 103 | 6 90 96 103 Greatest Support 40 | 20 20 40 40 Greatest Overweight (x) 30 | . 4 9 30 Average Overweight (x) 4 | . 2 4 6 Largest Inventory Capacity 25 | 5 25 25 25 Average Capacity 22 | 5 18 25 25 Most Carried 20 | 5 13 14 20 Average Carried 11 | 2 8 12 14 Final Capacity 25 | 5 25 25 25 Final Carried 19 | 3 12 11 19 Class Distribution -------------------- 75% | Mutant 24% | Scavenger-Mutant Dominant Class ---------------- Mutant | -10/Materials Mutant | -9/Materials Mutant | -9/Storage Resources | -11 -10 -9 -9 ----------- Run | Yrd Mat Mat Sto Matter Collected 1069 | 254 150 230 435 Remotely . | . . . . Salvage Created 1538 | 43 140 342 1013 Parts 108 | . 27 31 50 Haulers Intercepted 1 | . . . 1 Recyclers Shooed . | . . . . Parts Field Recycled . | . . . . Retrieved Matter . | . . . . Parts Self-Destructed . | . . . . Prevented . | . . . . Kills | -11 -10 -9 -9 ------- Run | Yrd Mat Mat Sto Combat Hostiles Destroyed 31 | 1 6 15 9 Guns 1 | 1 . . . Cannons 22 | . 3 12 7 AOE 6 | . 3 3 . Classes Destroyed 10 | 1 4 3 2 Worker 4 | . 1 . 3 Builder 6 | . 2 1 3 Tunneler 1 | . . 1 . Hauler 1 | . . . 1 Recycler 6 | . . . 6 Mechanic 1 | . . 1 . Watcher 5 | . 3 . 2 Swarmer 11 | . 6 3 2 Grunt 16 | 1 . 11 4 Sentry 4 | . . 1 3 Best Kill Streak 8 | 1 8 4 6 Combat Bots Only 6 | 1 6 3 5 Max Kills in Single Turn 4 | 1 4 2 1 Gunslinging . | . . . . Exploded 3 | . 3 2 . Melee . | . . . . Uniques/NPCs Destroyed . | . . . . Combat | -11 -10 -9 -9 -------- Run | Yrd Mat Mat Sto Hostile Shots Fired 231 | 5 11 57 158 Missed 54 | 1 3 13 37 Damage Taken 1478 | 32 73 373 1000 Core 426 | . 26 78 322 Absorbed by Shields 103 | . . 103 . Ignored by Resistances 485 | 10 23 143 309 Regen/Repaired (Parts) 29 | . 29 . . Core Remaining (%) 94 | 100 89 . . Volleys Fired 137 | 4 16 45 72 Largest 2 | 2 2 2 2 Hottest 110 | 70 90 95 110 Shots Fired 202 | 8 23 52 119 Gun 39 | 8 . . 31 Cannon 140 | . 16 36 88 Launcher 23 | . 7 16 . Special . | . . . . Kinetic 63 | 4 . 30 29 Thermal 116 | 4 16 6 90 Explosive 23 | . 7 16 . Electromagnetic . | . . . . Robot Hit Streak 60 | 3 5 14 60 Robot Miss Streak 1 | 1 1 1 1 Penetration Max . | . . . . Secondary Targets . | . . . . Shots Hit Robots 145 | 5 12 35 93 Core Hits 81 | 2 15 30 34 Critical Kills 1 | . . . 1 Critical Parts Destroyed . | . . . . Critical Strikes 6 | . . 2 4 Meltdown 1 | . . . 1 Blast 5 | . . 2 3 Melee Attacks . | . . . . Impact . | . . . . Slashing . | . . . . Piercing . | . . . . Sneak Attacks . | . . . . Combat Hostiles . | . . . . Follow-up Attacks . | . . . . Damage Inflicted 3078 | 48 449 1122 1459 Guns 370 | 48 . . 322 Cannons 1786 | . 173 476 1137 Explosions 922 | . 276 646 . Melee . | . . . . Ramming . | . . . . Kinetic 777 | 35 . 405 337 Thermal 1379 | 13 173 71 1122 Explosive 922 | . 276 646 . Electromagnetic . | . . . . Impact . | . . . . Slashing . | . . . . Piercing . | . . . . Highest Corruption . | . . . . Average Corruption . | . . . . Corruption Purged . | . . . . Corruption Blocked . | . . . . Overload Shots . | . . . . Overflow Damage 31 | . 18 3 10 Projectiles 10 | . . . 10 Explosions 21 | . 18 3 . Melee . | . . . . Knockbacks 9 | . . 4 5 Impact . | . . . . Kinetic 8 | . . 4 4 Secondary 1 | . . . 1 Self-Inflicted Damage 95 | . 27 68 . Shots 4 | . 1 3 . Rammed . | . . . . Targets Rammed . | . . . . Kicked . | . . . . Crushed . | . . . . Highest Temperature 174 | 104 90 174 60 Average Temperature 26 | 61 35 47 13 Received Heat Transfer 558 | 24 . 174 360 Siege Activations . | . . . . Robots Corrupted . | . . . . Combat Hostiles . | . . . . Parts Fried . | . . . . Impact Corruptions . | . . . . Robots Melted 2 | . . . 2 Combat Hostiles 2 | . . . 2 Parts Melted 3 | . 1 . 2 Heat Transferred 2994 | 37 370 148 2439 Parts Sabotaged . | . . . . Parts Stolen . | . . . . Parts Stripped . | . . . . Power Chain Reactions . | . . . . Alert | -11 -10 -9 -9 ------- Run | Yrd Mat Mat Sto Peak Influence 430 | 20 271 430 236 Initial 100 | . 11 25 100 Average 136 | 4 167 229 90 Maximum Alert Level 2 | . 1 2 1 Low Security (%) 71 | 100 42 42 96 Level 1 26 | . 57 47 3 Level 2 2 | . . 9 . Level 3 . | . . . . Level 4 . | . . . . Level 5 . | . . . . High Security . | . . . . Max Security . | . . . . Squads Dispatched 4 | . . 3 1 Investigation . | . . . . Extermination . | . . . . Reinforcement 4 | . . 3 1 Assault . | . . . . Garrison . | . . . . Intercept . | . . . . Searches Triggered . | . . . . Construction Impeded 2 | . . 1 1 Haulers Reinforced . | . . . . Active Scanning Responses . | . . . . Cargo Convoy Interrupts . | . . . . Stealth | -11 -10 -9 -9 --------- Run | Yrd Mat Mat Sto Distress Signals 1 | . . 1 . Communications Jammed . | . . . . Distress Signals . | . . . . Times Spotted 48 | 1 11 18 18 Peak Tracking Total 9 | 1 3 3 9 Tactical Retreats 1 | . . 1 . Traps | -11 -10 -9 -9 ------- Run | Yrd Mat Mat Sto Traps Triggered 7 | . 2 . 5 Indirectly . | . . . . Trap Hack Attempts . | . . . . Triggered . | . . . . Disarmed . | . . . . Reprogrammed . | . . . . Reused . | . . . . Traps Extracted . | . . . . Installed . | . . . . Triggered . | . . . . Machines | -11 -10 -9 -9 ---------- Run | Yrd Mat Mat Sto Machines Disabled 3 | . 1 2 . Max in Single Turn 1 | . 1 1 . Machines Repaired . | . . . . Machines Dismantled . | . . . . Machines Sabotaged . | . . . . Overloaded Fab Kills . | . . . . Hacking | -11 -10 -9 -9 --------- Run | Yrd Mat Mat Sto Machines Accessed 5 | . 3 . 2 Terminals 3 | . 1 . 2 Fabricators . | . . . . Repair Stations 1 | . 1 . . Recycling Units 1 | . 1 . . Scanalyzers . | . . . . Garrison Access . | . . . . Total Hacks 8 | . 6 . 2 Successful 8 | . 6 . 2 Failed . | . . . . Catastrophic . | . . . . Database Lockouts . | . . . . Manual . | . . . . Terminals 3 | . 1 . 2 Fabricators . | . . . . Repair Stations 2 | . 2 . . Recycling Units 3 | . 3 . . Scanalyzers . | . . . . Garrison Access . | . . . . Terminal Hacks 3 | . 1 . 2 Open Door 1 | . . . 1 Alert Level 1 | . . . 1 Maintenance Status 1 | . 1 . . Fabricator Hacks . | . . . . Repair Station Hacks 2 | . 2 . . Scan Component 1 | . 1 . . Repair 1 | . 1 . . Recycling Unit Hacks 3 | . 3 . . Report Inventory 2 | . 2 . . Retrieve Components 1 | . 1 . . Scanalyzer . | . . . . Garrison Access Hacks . | . . . . Unauthorized Hacks . | . . . . Terminals . | . . . . Fabricators . | . . . . Repair Stations . | . . . . Recycling Units . | . . . . Scanalyzers . | . . . . Garrison Access . | . . . . Data Cores Recovered . | . . . . Used . | . . . . Hacking Detections 1 | . . . 1 Full Trace Events . | . . . . Feedback Events . | . . . . Feedback Blocked . | . . . . Robot Schematics Acquired . | . . . . Robots Built . | . . . . Authchips . | . . . . Time . | . . . . Total Robot Build Rating . | . . . . Part Schematics Acquired . | . . . . Parts Built . | . . . . Authchips . | . . . . Time . | . . . . Total Part Build Rating . | . . . . Parts Repaired 1 | . 1 . . Time 26 | . 26 . . Parts Recycled . | . . . . Recycled Matter . | . . . . Retrieved Matter . | . . . . Retrieved Components 1 | . 1 . . Parts Scanalyzed . | . . . . Part Schematics Acquired . | . . . . Parts Damaged . | . . . . Bothacking | -11 -10 -9 -9 ------------ Run | Yrd Mat Mat Sto Used RIF Installer . | . . . . Robots Hacked . | . . . . Non-combat . | . . . . Combat . | . . . . Robot Hacks Applied . | . . . . Relay Couplers Released . | . . . . Fabnet Peak Effective % . | . . . . Robots Rewired . | . . . . Allies Hacked . | . . . . Hacks Repelled . | . . . . Allies | -11 -10 -9 -9 -------- Run | Yrd Mat Mat Sto Total Allies . | . . . . Largest Group . | . . . . Highest-Rated Group . | . . . . Highest-Rated Ally . | . . . . Total Orders . | . . . . Ally Attacks . | . . . . Total Damage . | . . . . Kills . | . . . . Allies Corrupted . | . . . . Allies Melted . | . . . . Intel | -11 -10 -9 -9 ------- Run | Yrd Mat Mat Sto Robot Analysis Total . | . . . . Derelict Logs Recovered . | . . . . Drone Launches . | . . . . Drone Recoveries . | . . . . Exploration | -11 -10 -9 -9 ------------- Run | Yrd Mat Mat Sto Turns Passed 2036 | 113 457 495 971 Spaces Moved 937 | 90 303 230 314 Core 35 | 26 2 . 7 Treads 53 | . . 18 35 Legs 115 | 64 51 . . Wheels 734 | . 250 212 272 Hover . | . . . . Flight . | . . . . Fastest Speed 50 | 50 80 140 140 Average Speed 167 | 99 126 164 229 Slowest Speed 1550 | 120 150 320 1550 Overloaded Moves . | . . . . Propulsion Burnouts . | . . . . Robots Hopped . | . . . . Cave-ins Triggered . | . . . . Exploration Rate (%) 31 | 8 55 21 42 Regions Visited 3 Branch Regions 1 Pre-discovered Areas . | . . . . Known Exits Taken . | . . . . Unknown Exits Taken 3 | 1 1 1 . Scrap Searched . | . . . . Spaces Dug 25 | . . 25 . Terrain Destroyed 133 | . 39 94 . Melee . | . . . . Projectile . | . . . . AOE 133 | . 39 94 . Terrain Rammed . | . . . . Walls Destroyed . | . . . . Machines Disabled . | . . . . Actions | -11 -10 -9 -9 --------- Run | Yrd Mat Mat Sto Total 1199 | 106 352 296 445 Wait 11 | . . 8 3 Move 934 | 89 302 229 314 Hop . | . . . . Pick Up 46 | 8 18 5 15 Fast Attach . | . . . . Attach 31 | 5 9 6 11 Detach 6 | . 2 . 4 Swap 17 | . 4 3 10 Drop 1 | . 1 . . Fire 137 | 4 16 45 72 Melee . | . . . . Ram . | . . . . Kick . | . . . . Crush . | . . . . Escape Stasis 16 | . . . 16 Rewire . | . . . . Trap . | . . . . Miscellaneous . | . . . . Route ------- -11/Scrapyard -10/Materials -9/Materials -9/Storage History --------- Turn | Location | Event 2 | -11/Scrapyard | Met Revision 17 72 | -11/Scrapyard | Discovered new exit (range 8) 114 | -11/Scrapyard | Entered Materials 301 | -10/Materials | Build established: Mutant 509 | -10/Materials | Repaired Grenade Launcher 567 | -10/Materials | Discovered new exit (range 4) 571 | -10/Materials | Entered another Materials area 571 | -9/Materials | Evolved 2 slots: Power x1, Utility x1 853 | -9/Materials | Discovered new exit (range 18) 1066 | -9/Materials | Entered Storage 2004 | -9/Storage | Core integrity fell below 50% 2033 | -9/Storage | Core integrity fell below 20% 2037 | -9/Storage | Destroyed by G-34 Mercenary with Small Laser Last Messages --------------- Wheel destroyed. Lgt. Cannon destroyed. R-06 Scavenger collects Sml. Storage Unit. M-13 Machinist repairs Beam Rifle. G-34 Mercenary destroyed. K-01 Serf collects debris. R-06 Scavenger collects Ion Engine. K-01 Serf collects debris. Sml. Laser destroyed. R-06 Scavenger collects Imp. Heat Sink. M-13 Machinist repairs Y-45 Defender. K-01 Serf collects debris. S-10 Pest destroyed. Acquired 25 matter. K-01 Serf collects debris. R-06 Scavenger collects Aluminum Leg. Hvy. Ion Engine destroyed. R-06 Scavenger collects Lgt. Ion Engine. Imp. Heat Sink destroyed. [Achievement: First Step to Greatness] Map ----- +----------------------------------------------------+ | ?????????????????????????????????????????????????? | | ?????????????????????????????????????????????????? | | ?????????????????????????????????????????????????? | | ?????????????????????????????????????????????????? | | ?????????????????????????????????????????????????? | | ?????????????????????????????????????????????????? | | ?????????????????????????????????????????????????? | | ?????????????????????????????????????????????????? | | ?????????????????????????????????????????????????? | | ?????????????????????????????????????????????????? | | ?????????????????????????????????????????????????? | | ?????????????????????????????????????????????????? | | ?????????????????????????????????????????????????? | | ???????????????????####???###????????????????????? | | ??????????????????? ??? ###??????????????????? | | ???????????????????# ??? ""???????????????????? | | ???????????????????# """ ""???????????????????? | | ???????????????????# """ ????????????????????? | | ???????????????????#u "????????????????????? | | ???????????????????# """ ?????????????????????? | | ???????????????????# """ ?????????????????????? | | ???????????????????? """=??????????????????????? | | ????????????????????? kr%=??????????????????????? | | ??????????????????????#/#/#??????###########?????? | | ??????????????????????#YgY#??????# = #?????? | | ??????????????????????#%!@#??????#=""""" #?????? | | ??????????????????????#%s%#??????# "???" #?????? | | ??????????????????????#^[^#??????#!""??" #??#### | | ??????????????????????#^=^########%%"??"" #??#* | | ????????????########### =% / "???" #??#* | | ???????????##= # !########= """"" #?##" " | | ???????????#*%= #k *#??????# #?#T | | ???????????##% # %#?????######+##+######/# | | ????????????# """ """ +% #?????# | | ????????????# """ """ # #?????# | | ????????????# """ """ # #?????# | | ????????????# # #?????####+###########+# | | ????????????# # #????????# #??????#T | | ????????????########### %#????????# #??????## | | ?????????????# #r #????????# #???????#] | | ?????????????# "T" #u #????????#####???????#]] | | ?????????????# # +????????????????????### | | ?????????????# # #??????????????????????? | | ?????????????# + #??????????????????????? | | ?????????????# #% #??????????????????????? | | ?????????????# = # #??????????????????????? | | ?????????????# ![ # %#??????????????????????? | | ????????????# % # #??????????????????????? | | ????????????####"Y"#### #??????????????????????? | | ???????????? #"""#??# #??????????????????????? | +----------------------------------------------------+ Best States ------------- Heat Dissipation 42 Energy Generation 23 Energy Capacity 460 Matter Stores 300 Matter Capacity 300 Sight Range 18 Terrain Scan Density 85 Resistance: KI 20 Resistance: TH 20 Resistance: EX 20 Resistance: EM 20 Resistance: I 20 Resistance: S 20 Resistance: P 20 Evasion (%) 55 Recoil Reduction 2 Offensive Hacking 10 Item Schematics ----------------- None Robot Schematics ------------------ None Fabricated ------------ Nothing Alien Tech Used ----------------- None Achievements -------------- Crack Shot First Step to Greatness It's Just You Loot Pinata Part-time Mechanic Risk Taker Uninvited Guest Challenges ------------ None Game ------ Seed DrainedCloakBroadsword Manual? 0 Play Time 00:44:49 Cumulative 0.7 hours Start 2024.12.02 @ 16:47:40 End 2024.12.02 @ 17:42:19 Sessions 1 Manual Loads 0 Difficulty Adventurer Special Mode None Game No. 1 Rogue 0 Adventurer 1 Explorer 0 Win Type - Total 0 Types 0/0/0/0/0/0/0/0/0 Lore% 0 Gallery% 2 Achievement% 2 Wizard Run 0 Options --------- Layout 1 ASCII 0 Keyboard 0 Movement Mouse Keybinds 0 Fullscreen 1 Font 32/SmallcapsGlow Map View 50x35 Zoom Use 0% Tactical HUD 0 Map Filters NONE Filters NONE Steam 1 RUN: 30eadb38-2e11-44b6-8dd5-dcb638bb8c14